fUST/lending_fUST_20251120
["ID","MTS","AMOUNT","RATE_DAILY","PERIOD"]
[394441269,1763575838796,-500.0,0.00012286,2]
[394441270,1763575838805,-500.0,0.00012286,2]
[394441271,1763575838815,-500.0,0.00012286,2]
[394441272,1763575838826,-500.0,0.00012286,2]
[394441273,1763575838835,-500.0,0.00012286,2]
[394441274,1763575838844,-500.0,0.00012286,2]
[394441275,1763575838854,-161.73053893,0.00012286,2]
[394441276,1763575838863,-555.55380013,0.00012286,2]
[394441277,1763575838873,-500.0,0.00012286,2]
[394441278,1763575838883,-500.0,0.00012286,2]
[394441279,1763575838892,-500.0,0.00012286,2]
[394441280,1763575838902,-500.0,0.00012286,2]
[394441281,1763575838912,-500.0,0.00012286,2]
[394441282,1763575838921,-500.0,0.00012286,2]
[394441283,1763575838931,-500.0,0.00012286,2]
[394441284,1763575838941,-500.0,0.00012286,2]
[394441285,1763575838951,-500.0,0.00012286,2]
[394441286,1763575838961,-500.0,0.00012286,2]
[394441287,1763575838970,-500.0,0.00012286,2]
[394441288,1763575838980,-500.0,0.00012286,2]
[394441289,1763575838990,-500.0,0.00012286,2]
[394441290,1763575838999,-500.0,0.00012286,2]
[394441291,1763575839010,-500.0,0.00012286,2]
[394441292,1763575839019,-500.0,0.00012286,2]
[394441293,1763575839029,-500.0,0.00012286,2]
[394441294,1763575839039,-500.0,0.00012286,2]
[394441295,1763575839053,-500.0,0.00012286,2]
[394441296,1763575839063,-500.0,0.00012286,2]
[394441297,1763575839073,-500.0,0.00012286,2]
[394441298,1763575839083,-500.0,0.00012286,2]
[394441299,1763575839092,-169.35412309,0.00012286,2]
[394441300,1763575839102,-271.53004384,0.00012286,2]
[394441301,1763575839112,-500.0,0.00012286,2]
[394441302,1763575839123,-500.0,0.00012286,2]
[394441303,1763575839133,-500.0,0.00012286,2]
[394441304,1763575839143,-500.0,0.00012286,2]
[394441305,1763575839153,-500.0,0.00012286,2]
[394441306,1763575839163,-500.0,0.00012286,2]
[394441307,1763575839173,-500.0,0.00012286,2]
[394441308,1763575839183,-571.53004383,0.00012286,2]
[394441309,1763575839193,-500.0,0.00012286,2]
[394441310,1763575839202,-500.0,0.00012286,2]
[394441311,1763575839212,-500.0,0.00012286,2]
[394441312,1763575839221,-13848.36464903,0.00012287,2]
[394441313,1763575839230,-201.91344625,0.0001241,2]
[394441314,1763575839240,-48618.03639877,0.00012411,2]
[394441315,1763575839249,-500.0,0.00012411,2]
[394441316,1763575839258,-1200.0,0.00012411,2]
[394441317,1763575839268,-890000.0,0.00012412,2]
[394441318,1763575839277,-933.39939655,0.00012512,2]
[394441319,1763575839287,-151.0,0.000126,2]
[394441320,1763575839296,-151.0,0.000126,2]
[394441321,1763575839306,-151.0,0.000126,2]
[394441322,1763575839315,-151.0,0.000126,2]
[394441323,1763575839324,-151.0,0.000126,2]
[394441324,1763575839333,-500.0,0.00012685,2]
[394441325,1763575839342,-151.0,0.000127,2]
[394441326,1763575839352,-151.0,0.000127,2]
[394441327,1763575839362,-151.0,0.000127,2]
[394441328,1763575839371,-151.0,0.000127,2]
[394441329,1763575839381,-151.0,0.000127,2]
[394441330,1763575839390,-151.0,0.000127,2]
[394441331,1763575839399,-151.0,0.000127,2]
[394441332,1763575839408,-151.0,0.000127,2]
[394441333,1763575839417,-151.0,0.000127,2]
[394441334,1763575839426,-151.0,0.000127,2]
[394441335,1763575839435,-151.0,0.000127,2]
[394441336,1763575839444,-151.0,0.000127,2]
[394441337,1763575839453,-17594.150641,0.0001274,2]
[394441338,1763575839462,-435.9585697,0.0001274,2]
[394441339,1763575839471,-500.0,0.00012773,2]
[394441340,1763575839480,-151.0,0.000128,2]
[394441341,1763575839490,-8349.0773066,0.000129,2]
[394441342,1763575839499,-1876.3514704,0.00013477,2]
[394441343,1763575839508,-420.0,0.00013483,2]
[394441344,1763575839518,-567.0,0.00013619,2]
[394441345,1763575839528,-2150.69965507,0.00013646,2]
[394441346,1763575839538,-500.0,0.00013673,2]
[394441347,1763575839548,-500.0,0.00013673,2]
[394441348,1763575839558,-500.0,0.00013673,2]
[394441349,1763575839567,-500.0,0.00013673,2]
[394441350,1763575839578,-500.0,0.00013673,2]
[394441351,1763575839587,-500.0,0.00013673,2]
[394441352,1763575839596,-500.0,0.00013673,2]
[394441353,1763575839605,-500.0,0.00013673,2]
[394441354,1763575839614,-500.0,0.00013673,2]
[394441355,1763575839623,-500.0,0.00013673,2]
[394441356,1763575839632,-500.0,0.00013673,2]
[394441357,1763575839641,-500.0,0.00013673,2]
[394441358,1763575839650,-500.0,0.00013673,2]
[394441359,1763575839659,-500.0,0.00013673,2]
[394441360,1763575839669,-263.70606165,0.00013673,2]
[394441361,1763575839678,-500.0,0.00013698,2]
[394441362,1763575839687,-256.37811665,0.00013698,2]
[394441363,1763575839695,-9897.42,0.00013698,2]
[394441364,1763575839704,-9897.42,0.00013698,2]
[394441365,1763575839713,-9897.42,0.00013698,2]
[394441366,1763575839722,-9897.42,0.00013698,2]
[394441367,1763575839731,-9897.42,0.00013698,2]
[394441368,1763575839740,-9897.42,0.00013698,2]
[394441369,1763575839750,-9897.42,0.00013698,2]
[394441370,1763575839759,-9897.42,0.00013698,2]
[394441371,1763575839769,-9897.42,0.00013698,2]
[394441372,1763575839778,-9897.42,0.00013698,2]
[394441373,1763575839787,-500.0,0.00013698,2]
[394441374,1763575839797,-9897.42,0.00013698,2]
[394441375,1763575839806,-500.0,0.00013698,2]
[394441376,1763575839815,-9897.42,0.00013698,2]
[394441377,1763575839827,-500.0,0.00013698,2]
[394441378,1763575839836,-9897.42,0.00013698,2]
[394441379,1763575839845,-500.0,0.00013698,2]
[394441380,1763575839855,-9897.42,0.00013698,2]
[394441381,1763575839864,-500.0,0.00013698,2]
[394441382,1763575839873,-9897.42,0.00013698,2]
[394441383,1763575839883,-500.0,0.00013698,2]
[394441384,1763575839893,-9897.42,0.00013698,2]
[394441385,1763575839902,-8227.4172697,0.00013698,2]
[394441434,1763575841037,-3e-08,0.00013698,2]
[394441455,1763575846041,-391.73497656,0.00013698,2]
[394441472,1763575846743,-1278.26775371,0.00013698,2]
[394441473,1763575846753,-500.0,0.00013698,2]
[394441474,1763575846763,-2143.05303392,0.00013698,2]
[394441475,1763575858107,9842.30074733,0.00012163,2]
[394441476,1763575858131,888.29118037,0.00012163,2]
[394441477,1763575858903,-500.0,0.00012286,2]
[394441478,1763575858927,-258.14371288,0.00012286,2]
[394441479,1763575861485,195.74,5e-05,2]
[394441480,1763575861771,195.74,5.1e-05,2]
[394441481,1763575862083,195.74,5.1e-05,2]
[394441482,1763575862336,195.74,5.2e-05,2]
[394441483,1763575862627,195.74,5.3e-05,2]
[394441484,1763575862889,-300.0,0.00012285,2]
[394441485,1763575862912,-200.0,0.00012286,2]
[394441486,1763575862942,195.74,5.3e-05,2]
[394441487,1763575863192,195.74,5.4e-05,2]
[394441488,1763575863461,195.74,5.5e-05,2]
[394441489,1763575863792,195.74,5.5e-05,2]
[394441490,1763575864064,195.74,5.6e-05,2]
[394441491,1763575864341,195.74,5.7e-05,2]
[394441492,1763575864622,195.74,5.7e-05,2]
[394441493,1763575864944,195.74,5.8e-05,2]
[394441494,1763575865114,-41.85628712,0.00012286,2]
[394441495,1763575865140,-333.17924763,0.00012286,2]
[394441496,1763575865296,195.74,5.9e-05,2]
[394441497,1763575866227,195.74,5.9e-05,2]
[394441498,1763575866609,195.74,6e-05,2]
[394441499,1763575866972,195.74,6.1e-05,2]
[394441500,1763575867248,195.74,6.1e-05,2]
[394441501,1763575867539,195.74,6.2e-05,2]
[394441502,1763575867826,195.74,6.3e-05,2]
[394441503,1763575868116,195.74,6.3e-05,2]
[394441504,1763575868396,195.74,6.4e-05,2]
[394441505,1763575868497,-166.82075237,0.00012286,2]
[394441506,1763575868521,-385.82053584,0.00012286,2]
[394441507,1763575868688,195.74,6.5e-05,2]
[394441508,1763575868962,195.74,6.5e-05,2]
[394441509,1763575869245,195.74,6.6e-05,2]
[394441510,1763575869623,195.74,6.7e-05,2]
[394441511,1763575869940,195.74,6.7e-05,2]
[394441512,1763575870230,195.74,6.8e-05,2]
[394441513,1763575870574,195.74,6.9e-05,2]
[394441514,1763575870929,195.74,6.9e-05,2]
[394441515,1763575871118,195.74,7e-05,2]
[394441516,1763575871158,-114.17946416,0.00012286,2]
[394441517,1763575871181,-145.81367049,0.00012286,2]
[394441518,1763575871404,195.74,7.1e-05,2]
[394441519,1763575871773,195.74,7.1e-05,2]
[394441520,1763575872055,195.74,7.2e-05,2]
[394441521,1763575872246,-23.5404526,0.00012286,2]
[394441522,1763575872277,-500.0,0.00012286,2]
[394441523,1763575872308,-500.0,0.00012286,2]
[394441524,1763575872338,-500.0,0.00012286,2]
[394441525,1763575872371,-500.0,0.00012286,2]
[394441526,1763575872402,-500.0,0.00012286,2]
[394441527,1763575872433,-500.0,0.00012286,2]
[394441528,1763575872462,-500.0,0.00012286,2]
[394441529,1763575872490,-500.0,0.00012286,2]
[394441530,1763575872517,-500.0,0.00012286,2]
[394441531,1763575872545,-452.9290948,0.00012286,2]
[394441532,1763575872793,195.74,7.3e-05,2]
[394441533,1763575873101,-47.0709052,0.00012286,2]
[394441534,1763575873132,-500.0,0.00012286,2]
[394441535,1763575873160,-500.0,0.00012286,2]
[394441536,1763575873188,-500.0,0.00012286,2]
[394441537,1763575873220,-561.23780461,0.00012286,2]
[394441538,1763575873250,-500.0,0.00012286,2]
[394441539,1763575873279,-500.0,0.00012286,2]
[394441540,1763575873308,-500.0,0.00012286,2]
[394441541,1763575873386,195.74,7.3e-05,2]
[394441542,1763575873510,195.74,7.4e-05,2]
[394441543,1763575873914,195.74,7.5e-05,2]
[394441544,1763575874242,195.74,7.5e-05,2]
[394441545,1763575874549,195.74,7.6e-05,2]
[394441546,1763575874868,195.74,7.7e-05,2]
[394441547,1763575875301,195.74,7.7e-05,2]
[394441548,1763575875576,195.74,7.8e-05,2]
[394441549,1763575875900,195.74,7.9e-05,2]
[394441550,1763575876231,195.74,7.9e-05,2]
[394441551,1763575876591,195.74,8e-05,2]
[394441552,1763575876870,195.74,8.1e-05,2]
[394441553,1763575877157,195.74,8.1e-05,2]
[394441554,1763575877508,195.74,8.2e-05,2]
[394441555,1763575877793,43.03258038,8.3e-05,2]
[394441556,1763575877817,152.70741962,8.3e-05,2]
[394441557,1763575880945,500.0,0.00012286,2]
[394441558,1763575880993,500.0,0.00012286,2]
[394441559,1763575881044,500.0,0.00012286,2]
[394441560,1763575881096,600.61708891,0.00012286,2]
[394441561,1763575881154,500.0,0.00012286,2]
[394441562,1763575907359,500.0,0.00012286,2]
[394441563,1763575907403,500.0,0.00012286,2]
[394441564,1763575907438,500.0,0.00012286,2]
[394441565,1763575907684,500.0,0.00012286,2]
[394441566,1763575907721,500.0,0.00012286,2]
[394441567,1763575907756,500.0,0.00012286,2]
[394441568,1763575907995,500.0,0.00012286,2]
[394441569,1763575908080,500.0,0.00012286,2]
[394441570,1763575908126,500.0,0.00012286,2]
[394441571,1763575908434,500.0,0.00012286,2]
[394441572,1763575908533,500.0,0.00012286,2]
[394441573,1763575908580,500.0,0.00012286,2]
[394441574,1763575908620,500.0,0.00012286,2]
[394441575,1763575908663,500.0,0.00012286,2]
[394441576,1763575908846,246.68549147,0.00012286,2]
[394441577,1763575908876,253.31450853,0.00012286,2]
[394441578,1763575908968,500.0,0.00012286,2]
[394441579,1763575909230,500.0,0.00012286,2]
[394441580,1763575909443,500.0,0.00012286,2]
[394441581,1763575909594,500.0,0.00012286,2]
[394441582,1763575909748,500.0,0.00012286,2]
[394441583,1763575909832,500.0,0.00012286,2]
[394441584,1763575909918,500.0,0.00012286,2]
[394441585,1763575909960,500.0,0.00012286,2]
[394441586,1763575909997,500.0,0.00012286,2]
[394441587,1763575910032,500.0,0.00012286,2]
[394441588,1763575910071,500.0,0.00012286,2]
[394441589,1763575910106,500.0,0.00012286,2]
[394441590,1763575910144,321.70227238,0.00012286,2]
[394441591,1763575910186,500.0,0.00012286,2]
[394441592,1763575910226,500.0,0.00012286,2]
[394441593,1763575910260,500.0,0.00012286,2]
[394441594,1763575910294,500.0,0.00012286,2]
[394441595,1763575910329,500.0,0.00012286,2]
[394441596,1763575910364,500.0,0.00012286,2]
[394441597,1763575910397,424.99321909,0.00012286,2]
[394441598,1763575910422,75.00678091,0.00012286,2]
[394441599,1763575910458,500.0,0.00012286,2]
[394441600,1763575910495,704.98461273,0.00012286,2]
[394441601,1763575910535,500.0,0.00012286,2]
[394441602,1763575910577,704.98461273,0.00012286,2]
[394441603,1763575910615,704.98461273,0.00012286,2]
[394441604,1763575910655,500.0,0.00012286,2]
[394441605,1763575910695,704.98461273,0.00012286,2]
[394441606,1763575910730,500.0,0.00012286,2]
[394441607,1763575910857,704.98461273,0.00012286,2]
[394441608,1763575910901,704.98461273,0.00012286,2]
[394441609,1763575910938,500.0,0.00012286,2]
[394441610,1763575910977,704.98461273,0.00012286,2]
[394441611,1763575911009,500.0,0.00012286,2]
[394441612,1763575911056,704.98461273,0.00012286,2]
[394441613,1763575911091,500.0,0.00012286,2]
[394441614,1763575911126,704.98461273,0.00012286,2]
[394441615,1763575911162,80.14170452,0.00012286,2]
[394441616,1763575911190,624.84290821,0.00012286,2]
[394441617,1763575911224,704.98461273,0.00012286,2]
[394441618,1763575911263,704.98461273,0.00012286,2]
[394441619,1763575911301,704.98461273,0.00012286,2]
[394441620,1763575911353,252.60359079,0.00012286,2]
[394441621,1763575911379,452.38102194,0.00012286,2]
[394441622,1763575911527,704.98461273,0.00012286,2]
[394441623,1763575911563,704.98461273,0.00012286,2]
[394441624,1763575911598,704.98461273,0.00012286,2]
[394441625,1763575911640,704.98461273,0.00012286,2]
[394441626,1763575911682,704.98461273,0.00012286,2]
[394441627,1763575911715,704.98461273,0.00012286,2]
[394441628,1763575911753,704.98461273,0.00012286,2]
[394441629,1763575911788,704.98461273,0.00012286,2]
[394441630,1763575911822,704.98461273,0.00012286,2]
[394441631,1763575911856,462.97071709,0.00012286,2]
[394441632,1763575911881,242.01389564,0.00012286,2]
[394441633,1763575911928,704.98461273,0.00012286,2]
[394441634,1763575911965,704.98461273,0.00012286,2]
[394441635,1763575912005,704.98461273,0.00012286,2]
[394441636,1763575912040,704.98461273,0.00012286,2]
[394441637,1763575912081,704.98461273,0.00012286,2]
[394441638,1763575912115,704.98461273,0.00012286,2]
[394441639,1763575912156,704.98461273,0.00012286,2]
[394441640,1763575912197,704.98461273,0.00012286,2]
[394441641,1763575912317,704.98461273,0.00012286,2]
[394441642,1763575912356,704.98461273,0.00012286,2]
[394441643,1763575912393,704.98461273,0.00012286,2]
[394441644,1763575912428,704.98461273,0.00012286,2]
[394441645,1763575912472,704.98461273,0.00012286,2]
[394441646,1763575912513,593.19613887,0.00012286,2]
[394441647,1763575912540,111.78847386,0.00012286,2]
[394441648,1763575912575,704.98461273,0.00012286,2]
[394441649,1763575912630,704.98461273,0.00012286,2]
[394441650,1763575912663,704.98461273,0.00012286,2]
[394441651,1763575912700,704.98461273,0.00012286,2]
[394441652,1763575912753,704.98461273,0.00012286,2]
[394441653,1763575912790,704.98461273,0.00012286,2]
[394441654,1763575912828,704.98461273,0.00012286,2]
[394441655,1763575912873,704.98461273,0.00012286,2]
[394441656,1763575912908,704.98461273,0.00012286,2]
[394441667,1763575949787,500.0,0.00012286,2]
[394441674,1763575977944,9500.01,0.00012187,2]
[394441675,1763575977968,10000.01,0.00012187,2]
[394441676,1763575977993,10000.01,0.00012187,2]
[394441677,1763575978019,10000.01,0.00012187,2]
[394441678,1763575984376,-300.0,0.00012186,2]
[394441679,1763576056371,-385.0928309,0.00011944,2]
[394441680,1763576058979,-347.16894728,0.00011944,2]
[394441681,1763576060418,-315.57888743,0.00011944,2]
[394441682,1763576086274,-262.74466122,0.00011825,2]
[394441683,1763576086296,-97.56900382,0.00011944,2]
[394441684,1763576101299,-165.1756574,0.00011825,2]
[394441685,1763576101326,-106.09313003,0.00011944,2]
[394441686,1763576185967,-59.08252737,0.00011944,2]
[394441687,1763576186903,-261.84357113,0.00012065,2]
[394441688,1763576188442,-172.35629652,0.00012065,2]
[394441689,1763576190469,-214.96249055,0.00012126,2]
[394441690,1763576190491,-70.38459039,0.00012185,2]
[394441691,1763576190527,1099.00078667,0.00011944,2]
[394441692,1763576195068,-229.61540961,0.00012185,2]
[394441693,1763576195093,-138.73042808,0.00012185,2]
[394441694,1763576197744,-198.20680074,0.00012185,2]
[394441695,1763576199316,-163.06277118,0.00012185,2]
[394441696,1763576199339,-98.82970131,0.00012185,2]
[394441697,1763576201402,-175.52271418,0.00012185,2]
[394441698,1763576203526,-225.64758451,0.00012185,2]
[394441699,1763576203549,-331.56797008,0.00012185,2]
[394441700,1763576206120,-441.44469649,0.00012063,2]
[394441701,1763576209760,-500.0,0.00012063,2]
[394441702,1763576211309,-296.66283102,0.00012063,2]
[394441703,1763576213891,1791.06573929,0.00011942,2]
[394441704,1763576215140,-310.15941068,0.00012063,2]
[394441705,1763576219893,-298.22859814,0.00012063,2]
[394441706,1763576222432,-534.59055445,0.00012063,2]
[394441707,1763576225059,-185.42548979,0.00012063,2]
[394441708,1763576227095,-158.62156415,0.00012063,2]
[394441709,1763576229219,-240.89493648,0.00012063,2]
[394441710,1763576231125,-63.1451856,0.00012063,2]
[394441711,1763576231157,-208.13063338,0.00012184,2]
[394441712,1763576232625,-91.86936662,0.00012184,2]
[394441713,1763576232653,-168.43202992,0.00012185,2]
[394441714,1763576232681,-39.69860346,0.00012185,2]
[394441715,1763576235252,-253.13419051,0.00012185,2]
[394441717,1763576237973,-168.09854107,0.00012185,2]
[394441718,1763576239431,-39.06866496,0.00012185,2]
[394441719,1763576239459,-172.46791505,0.00012185,2]
[394441720,1763576242729,-131.05776724,0.00012185,2]
[394441721,1763576242752,-170.61037762,0.00012185,2]
[394441723,1763576245348,-329.38962238,0.00012185,2]
[394441724,1763576245372,-48.16603986,0.00012185,2]
[394441725,1763576246914,-166.82320455,0.00012185,2]
[394441727,1763576249602,-285.01075559,0.00012185,2]
[394441728,1763576249624,-14.98924441,0.00012185,2]
[394441729,1763576252140,-321.18367676,0.00012063,2]
[394441731,1763576254664,-160.93502787,0.00012063,2]
[394441732,1763576256176,-559.02530932,0.00012063,2]
[394441733,1763576259135,-315.0943809,0.00012063,2]
[394441734,1763576260530,443.86674164,0.00011942,2]
[394441735,1763576260625,-128.77236074,0.00012063,2]
[394441736,1763576260649,-148.34475582,0.00012185,2]
[394441737,1763576263203,-253.0530895,0.00012185,2]
[394441738,1763576268505,-442.70404882,0.00012185,2]
[394441739,1763576270322,-182.43952044,0.00012185,2]
[394441740,1763576272501,-151.56386386,0.00012185,2]
[394441741,1763576275113,-171.83081564,0.00012185,2]
[394441742,1763576277737,-402.71452503,0.00012063,2]
[394441743,1763576279781,-20.57804185,0.00012063,2]
[394441744,1763576279804,-251.46175124,0.00012185,2]
[394441745,1763576279829,-24.35653337,0.00012185,2]
[394441746,1763576282876,-59.2563769,0.00012185,2]
[394441747,1763576282904,-116.52601739,0.00012185,2]
[394441748,1763576285324,-356.79485054,0.00012063,2]
[394441749,1763576287373,-217.26221786,0.00012063,2]
[394441750,1763576289002,-417.26221786,0.00012063,2]
[394441751,1763576291153,-67.93709064,0.00012063,2]
[394441752,1763576291178,-97.53847364,0.00012185,2]
[394441753,1763576293510,-202.46152636,0.00012185,2]
[394441754,1763576293538,-145.3664551,0.00012185,2]
[394441755,1763576293567,-69.4342364,0.00012185,2]
[394441756,1763576295452,-362.78994441,0.00012185,2]
[394441757,1763576298943,-67.77581919,0.00012185,2]
[394441758,1763576298967,-214.96196295,0.00012185,2]
[394441759,1763576301392,-187.02997161,0.00012063,2]
[394441760,1763576303434,-389.12784935,0.00012063,2]
[394441761,1763576307436,229.72552574,0.00011942,2]
[394441762,1763576329881,229.72552574,0.00011942,2]
[394441763,1763576330556,-229.72552574,0.00012063,2]
[394441764,1763576330577,-99.91431069,0.00012124,2]
[394441767,1763576436833,276.0,0.00040323,120]
[394441768,1763576486240,-110.74893005,0.00012124,2]
[394441769,1763576486271,-195.17133866,0.00012183,2]
[394441770,1763576488438,-104.82866134,0.00012183,2]
[394441771,1763576488462,-47.62136788,0.00012184,2]
[394441772,1763576490496,-285.73595529,0.00012184,2]
[394441773,1763576493032,166.64267683,0.00012062,2]
[394441774,1763576493532,-166.64267683,0.00012184,2]
[394441775,1763576493554,-105.95299003,0.00012184,2]
[394441776,1763576497035,-389.85332005,0.00012184,2]
[394441777,1763576499255,-4.19368992,0.00012184,2]
[394441778,1763576499280,-207.29329488,0.00012184,2]
[394441779,1763576501183,-209.05789697,0.00012184,2]
[394441780,1763576503139,-83.64880815,0.00012184,2]
[394441781,1763576503164,-140.66480614,0.00012184,2]
[394441782,1763576505078,-359.33519386,0.00012184,2]
[394441783,1763576505106,-15.24144212,0.00012184,2]
[394441784,1763576508259,9833.36732317,0.00012062,2]
[394441785,1763576508286,10000.01,0.00012062,2]
[394441786,1763576508310,10000.01,0.00012062,2]
[394441787,1763576509200,-374.64162507,0.00012062,2]
[394441788,1763576521836,-300.0,0.00011941,2]
[394441789,1763576523410,-300.0,0.0001194,2]
[394441790,1763576523510,-199.27891845,0.00011941,2]
[394441791,1763576526070,-300.07451463,0.00011941,2]
[394441792,1763576529301,-414.16303167,0.00011941,2]
[394441794,1763576531209,-4629.59430109,0.00011941,2]
[394441795,1763576532481,-355.72437133,0.00011941,2]
[394441796,1763576534298,-10000.01,0.00011941,2]
[394441797,1763576535180,-211.19534326,0.00011941,2]
[394441798,1763576537229,-183.716,0.00011941,2]
[394441799,1763576537260,-2241.32769347,0.00011941,2]
[394441800,1763576540057,-206.07125464,0.00012062,2]
[394441808,1763576551370,-271.50431399,0.00011941,2]
[394441809,1763576552917,-246.6493585,0.00011941,2]
[394441810,1763576555044,-225.51468836,0.00011941,2]
[394441811,1763576556578,-320.45531104,0.00011941,2]
[394441812,1763576558652,-564.64790914,0.00011941,2]
[394441813,1763576560530,-193.60993279,0.00011941,2]
[394441814,1763576563687,-608.98437334,0.00011822,2]
[394441815,1763576567272,342.2799312,0.00011185,2]
[394441816,1763576567933,-169.76668593,0.00011822,2]
[394441828,1763576569551,-259.47912152,0.00011822,2]
[394441829,1763576571197,-414.13812032,0.00011822,2]
[394441830,1763576573256,-229.1045915,0.00011822,2]
[394441831,1763576576289,-176.0016093,0.00011822,2]
[394441832,1763576577770,-193.89830174,0.00011822,2]
[394441833,1763576579294,-500.0,0.00011822,2]
[394441834,1763576581053,-199.85726801,0.00011822,2]
[394441835,1763576583529,-335.04494031,0.00011822,2]
[394441836,1763576585038,-194.47980349,0.00011822,2]
[394441838,1763576716346,-380.60321431,0.00011704,2]
[394441839,1763576719090,-156.24735338,0.00011704,2]
[394441840,1763576720680,-436.58281601,0.00011704,2]
[394441841,1763576723646,-207.03683551,0.00011704,2]
[394441842,1763576726948,-180.28029699,0.00011704,2]
[394441843,1763576728508,-1048.25041885,0.00011704,2]
[394441844,1763576732831,-403.84407957,0.00011704,2]
[394441845,1763576735320,-300.0,0.00011704,2]
[394441846,1763576738937,-368.04522985,0.00011587,2]
[394441847,1763576741644,-581.19573489,0.00011587,2]
[394441848,1763576744869,-243.83427879,0.00011587,2]
[394441849,1763576747857,-6.44762522,0.00011587,2]
[394441850,1763576747880,-293.55237478,0.00011704,2]
[394441851,1763576749927,-347.11585858,0.00011704,2]
[394441853,1763576760367,605.97049397,0.00011471,2]
[394441854,1763576760938,-312.39077446,0.00011587,2]
[394441855,1763576764626,-293.57971951,0.00011587,2]
[394441856,1763576764650,-166.11388614,0.00011704,2]
[394441865,1763576896944,-213.59475807,0.00011703,2]
[394441866,1763576898409,-168.34857367,0.00011703,2]
[394441867,1763576899857,-292.73817395,0.00011703,2]
[394441868,1763576903010,-219.89751985,0.00011586,2]
[394441870,1763576904469,-552.80376963,0.00011586,2]
[394441871,1763576906571,-155.10605728,0.00011586,2]
[394441872,1763576908079,272.19265324,0.0001147,2]
[394441873,1763576909169,-176.31038961,0.00011586,2]
[394441874,1763576913534,-95.88226363,0.00011586,2]
[394441875,1763576913556,-358.74339442,0.00011703,2]
[394441876,1763576913987,1000.0,0.0001,2]
[394441877,1763576915127,-164.08738128,0.00011703,2]
[394441878,1763576921321,525.83396532,0.0001,2]
[394441881,1763576949794,1563.8054865,0.00011117,2]
[394441952,1763577036831,-2.48771861,0.00011703,2]
[394441953,1763577036840,-206.44997593,0.00011762,2]
[394441954,1763577036849,-300.0,0.0001196,2]
[394441955,1763577036858,-300.0,0.0001196,2]
[394441956,1763577036867,-216.26052947,0.0001196,2]
[394441957,1763577036884,-444.44,0.0001196,2]
[394441958,1763577036894,-539.29947053,0.0001196,2]
[394441959,1763577036904,-39.1735917,0.0001196,2]
[394441960,1763577036939,-162.73985455,0.0001196,2]
[394441961,1763577036948,-500.0,0.0001196,2]
[394441962,1763577036958,-500.0,0.0001196,2]
[394441963,1763577036967,-500.0,0.0001196,2]
[394441964,1763577036976,-500.0,0.0001196,2]
[394441965,1763577036986,-615.61550902,0.0001196,2]
[394441966,1763577036997,-500.0,0.0001196,2]
[394441967,1763577037006,-500.0,0.0001196,2]
[394441968,1763577037015,-445.75952926,0.0001196,2]
[394441969,1763577037025,-500.0,0.0001196,2]
[394441970,1763577037033,-500.0,0.0001196,2]
[394441971,1763577037042,-500.0,0.0001196,2]
[394441972,1763577037051,-500.0,0.0001196,2]
[394441973,1763577037060,-83.21596543,0.0001196,2]
[394441979,1763577037648,-416.78403457,0.0001196,2]
[394441980,1763577037658,-500.0,0.0001196,2]
[394441981,1763577037667,-500.0,0.0001196,2]